Workbook

Sheet Introduktion
B3: Version: Februari 2022
B6: PROJEKTMALL / GANTT-SCHEMA
B8: MALLENS SYFTE
B9: Med ett Gantt-schema fås en tydlig översikt över tidsplaneringen för ett projekt. Genom att ge olika aktiviteter i ett projekt startdatum och slutdatum så läggs de in i Gantt-schemat som ett tidsblock som ger en tydlig bild hur lång tid en aktivitet tar. Olika aktiviteter kan sedan läggas i förhållande till varandra och man kan se hur lång tid flera aktiviteter tar tillsammans. Vissa aktiviteter kan löpa parallellt och andra kan det inte. Vissa aktiviteter är också beroende av att andra aktiviteter har genomförts innan de kan påbörjas. Genom att lägga in de olika aktiviteterna för ett projekt ges en tydlig bild av hur lång tid projektet tar. Används sedan tidsplaneringsverktyget löpande under projektarbetet kan förseningar lätt upptäckas och anpassning av tidplanen göras. Gantt-schema kan användas för att planera alla typer av projekt och är ett vanligt verktyg vid planering av byggprojekt.
B11: SÅ HÄR JOBBAR MAN MED DENNA MALL
B13: 1. | C13: Välj året då projektet startar.
B18: 2. | C18: Fyll i Aktiviteter | E18: Aktivitet | F18: Namn på aktiviteten som ska genomföras
E19: Ansvarig | F19: Vem (namn eller företag) som är ansvarig för aktiviteten
E20: Start | F20: När aktiviteten ska börja
E21: Slut | F21: När aktiviteten ska sluta
E22: Status | F22: Vilken status aktiviteten har
B28: 2. | C28: Jobba med tidsplanen
C29: * Projektplanen är ett hjälpmedel som ger en bra översikt av de aktiviteter som ska göras, i vilken ordning och när i tiden.
C30: * Visa gärna upp planen för alla involverade och låt dem komma med inspel.
C31: * Planen ändras oftast över tiden, uppdatera dokumentet därför löpande under projektens gång.
C33: > Ta bort aktiviteter som ej längre behövs
C34: > Lägg till aktiviteter som har tillkommit
C35: > Ändra på datum och status
B37: 3. | C37: Övriga tips
C38: * Man kan lägga in en rubrikrad genom att enbart fylla i fältet "Aktivitet".
C39: * Högst upp finns det knappar som man kan ta bort, lägga till eller flytta rader med.
E41: + | F41: Lägg till en rad
E42: - | F42: Ta bort en rad
E43: p | F43: Flytta upp raden
E44: q | F44: Flytta ner raden
C46: * På sidan 'Exempel' kan man se hur man kan arbeta med mallen
B52: KONTAKTUPPGIFTER
B53: Vid frågor om mallen kontakta: Gård & Djurhälsan | 0771-216500 | info@gardochdjurhalsan.se

Sheet Mall tidplanering
H3: ändra 
H4: 2022 | L4: Tidsplan >>> | BH4: =H4+1 -> 2023 | DH4: =BH4+1 -> 2024
B6: =IF(_xlfn.ISOWEEKNUM(NOW())<9,YEAR(NOW())&"0"&_xlfn.ISOWEEKNUM(NOW()),YEAR(NOW())&_xlfn.ISOWEEKNUM(NOW()))+0 -> 202206 | H6: =IF(H7+0<10,(H4&"0"&H7)+0,H4&H7) -> 202201 | I6: =H6+1 -> 202202 | J6: =I6+1 -> 202203 | K6: =J6+1 -> 202204 | L6: 202205 | M6: 202206 | N6: 202207 | O6: 202208 | P6: 202209 | Q6: 202210 | R6: 202211 | S6: 202212 | T6: 202213 | U6: 202214 | V6: 202215 | W6: 202216 | X6: 202217 | Y6: 202218 | Z6: =Y6+1 -> 202219 | AA6: 202220 | AB6: 202221 | AC6: 202222 | AD6: 202223 | AE6: 202224 | AF6: 202225 | AG6: 202226 | AH6: 202227 | AI6: 202228 | AJ6: 202229 | AK6: 202230 | AL6: 202231 | AM6: 202232 | AN6: 202233 | AO6: 202234 | AP6: 202235 | AQ6: 202236 | AR6: 202237 | AS6: 202238 | AT6: 202239 | AU6: 202240 | AV6: 202241 | AW6: 202242 | AX6: 202243 | AY6: 202244 | AZ6: 202245 | BA6: 202246 | BB6: 202247 | BC6: 202248 | BD6: 202249 | BE6: 202250 | BF6: 202251 | BG6: 202252 | BH6: =BG6+49 -> 202301 | BI6: =BH6+1 -> 202302 | BJ6: =BI6+1 -> 202303 | BK6: =BJ6+1 -> 202304 | BL6: =BK6+1 -> 202305 | BM6: =BL6+1 -> 202306 | BN6: =BM6+1 -> 202307 | BO6: =BN6+1 -> 202308 | BP6: =BO6+1 -> 202309 | BQ6: =BP6+1 -> 202310 | BR6: =BQ6+1 -> 202311 | BS6: =BR6+1 -> 202312 | BT6: =BS6+1 -> 202313 | BU6: =BT6+1 -> 202314 | BV6: =BU6+1 -> 202315 | BW6: =BV6+1 -> 202316 | BX6: =BW6+1 -> 202317 | BY6: =BX6+1 -> 202318 | BZ6: =BY6+1 -> 202319 | CA6: =BZ6+1 -> 202320 | CB6: =CA6+1 -> 202321 | CC6: =CB6+1 -> 202322 | CD6: =CC6+1 -> 202323 | CE6: =CD6+1 -> 202324 | CF6: =CE6+1 -> 202325 | CG6: =CF6+1 -> 202326 | CH6: =CG6+1 -> 202327 | CI6: =CH6+1 -> 202328 | CJ6: =CI6+1 -> 202329 | CK6: =CJ6+1 -> 202330 | CL6: =CK6+1 -> 202331 | CM6: =CL6+1 -> 202332 | CN6: =CM6+1 -> 202333 | CO6: =CN6+1 -> 202334 | CP6: =CO6+1 -> 202335 | CQ6: =CP6+1 -> 202336 | CR6: =CQ6+1 -> 202337 | CS6: =CR6+1 -> 202338 | CT6: =CS6+1 -> 202339 | CU6: =CT6+1 -> 202340 | CV6: =CU6+1 -> 202341 | CW6: =CV6+1 -> 202342 | CX6: =CW6+1 -> 202343 | CY6: =CX6+1 -> 202344 | CZ6: =CY6+1 -> 202345 | DA6: =CZ6+1 -> 202346 | DB6: =DA6+1 -> 202347 | DC6: =DB6+1 -> 202348 | DD6: =DC6+1 -> 202349 | DE6: =DD6+1 -> 202350 | DF6: =DE6+1 -> 202351 | DG6: =DF6+1 -> 202352 | DH6: =DG6+49 -> 202401 | DI6: =DH6+1 -> 202402 | DJ6: =DI6+1 -> 202403 | DK6: =DJ6+1 -> 202404 | DL6: =DK6+1 -> 202405 | DM6: =DL6+1 -> 202406 | DN6: =DM6+1 -> 202407 | DO6: =DN6+1 -> 202408 | DP6: =DO6+1 -> 202409 | DQ6: =DP6+1 -> 202410 | DR6: =DQ6+1 -> 202411 | DS6: =DR6+1 -> 202412 | DT6: =DS6+1 -> 202413 | DU6: =DT6+1 -> 202414 | DV6: =DU6+1 -> 202415 | DW6: =DV6+1 -> 202416 | DX6: =DW6+1 -> 202417 | DY6: =DX6+1 -> 202418 | DZ6: =DY6+1 -> 202419 | EA6: =DZ6+1 -> 202420 | EB6: =EA6+1 -> 202421 | EC6: =EB6+1 -> 202422 | ED6: =EC6+1 -> 202423 | EE6: =ED6+1 -> 202424 | EF6: =EE6+1 -> 202425 | EG6: =EF6+1 -> 202426 | EH6: =EG6+1 -> 202427 | EI6: =EH6+1 -> 202428 | EJ6: =EI6+1 -> 202429 | EK6: =EJ6+1 -> 202430 | EL6: =EK6+1 -> 202431 | EM6: =EL6+1 -> 202432 | EN6: =EM6+1 -> 202433 | EO6: =EN6+1 -> 202434 | EP6: =EO6+1 -> 202435 | EQ6: =EP6+1 -> 202436 | ER6: =EQ6+1 -> 202437 | ES6: =ER6+1 -> 202438 | ET6: =ES6+1 -> 202439 | EU6: =ET6+1 -> 202440 | EV6: =EU6+1 -> 202441 | EW6: =EV6+1 -> 202442 | EX6: =EW6+1 -> 202443 | EY6: =EX6+1 -> 202444 | EZ6: =EY6+1 -> 202445 | FA6: =EZ6+1 -> 202446 | FB6: =FA6+1 -> 202447 | FC6: =FB6+1 -> 202448 | FD6: =FC6+1 -> 202449 | FE6: =FD6+1 -> 202450 | FF6: =FE6+1 -> 202451 | FG6: =FF6+1 -> 202452
B7: Aktivitet | C7: Ansvarig | D7: Start | E7: Slut | F7: Status | H7: 1 | I7: 2 | J7: 3 | K7: 4 | L7: 5 | M7: 6 | N7: 7 | O7: 8 | P7: 9 | Q7: 10 | R7: 11 | S7: 12 | T7: 13 | U7: 14 | V7: 15 | W7: 16 | X7: 17 | Y7: 18 | Z7: 19 | AA7: 20 | AB7: 21 | AC7: 22 | AD7: 23 | AE7: 24 | AF7: 25 | AG7: 26 | AH7: 27 | AI7: 28 | AJ7: 29 | AK7: 30 | AL7: 31 | AM7: 32 | AN7: 33 | AO7: 34 | AP7: 35 | AQ7: 36 | AR7: 37 | AS7: 38 | AT7: 39 | AU7: 40 | AV7: 41 | AW7: 42 | AX7: 43 | AY7: 44 | AZ7: 45 | BA7: 46 | BB7: 47 | BC7: 48 | BD7: 49 | BE7: 50 | BF7: 51 | BG7: 52 | BH7: 1 | BI7: 2 | BJ7: 3 | BK7: 4 | BL7: 5 | BM7: 6 | BN7: 7 | BO7: 8 | BP7: 9 | BQ7: 10 | BR7: 11 | BS7: 12 | BT7: 13 | BU7: 14 | BV7: 15 | BW7: 16 | BX7: 17 | BY7: 18 | BZ7: 19 | CA7: 20 | CB7: 21 | CC7: 22 | CD7: 23 | CE7: 24 | CF7: 25 | CG7: 26 | CH7: 27 | CI7: 28 | CJ7: 29 | CK7: 30 | CL7: 31 | CM7: 32 | CN7: 33 | CO7: 34 | CP7: 35 | CQ7: 36 | CR7: 37 | CS7: 38 | CT7: 39 | CU7: 40 | CV7: 41 | CW7: 42 | CX7: 43 | CY7: 44 | CZ7: 45 | DA7: 46 | DB7: 47 | DC7: 48 | DD7: 49 | DE7: 50 | DF7: 51 | DG7: 52 | DH7: 1 | DI7: 2 | DJ7: 3 | DK7: 4 | DL7: 5 | DM7: 6 | DN7: 7 | DO7: 8 | DP7: 9 | DQ7: 10 | DR7: 11 | DS7: 12 | DT7: 13 | DU7: 14 | DV7: 15 | DW7: 16 | DX7: 17 | DY7: 18 | DZ7: 19 | EA7: 20 | EB7: 21 | EC7: 22 | ED7: 23 | EE7: 24 | EF7: 25 | EG7: 26 | EH7: 27 | EI7: 28 | EJ7: 29 | EK7: 30 | EL7: 31 | EM7: 32 | EN7: 33 | EO7: 34 | EP7: 35 | EQ7: 36 | ER7: 37 | ES7: 38 | ET7: 39 | EU7: 40 | EV7: 41 | EW7: 42 | EX7: 43 | EY7: 44 | EZ7: 45 | FA7: 46 | FB7: 47 | FC7: 48 | FD7: 49 | FE7: 50 | FF7: 51 | FG7: 52

Sheet Exempel
H4: 2022 | L4: Tidsplan >>> | BH4: =H4+1 -> 2023 | DH4: =BH4+1 -> 2024
B6: =IF(_xlfn.ISOWEEKNUM(NOW())<9,YEAR(NOW())&"0"&_xlfn.ISOWEEKNUM(NOW()),YEAR(NOW())&_xlfn.ISOWEEKNUM(NOW()))+0 -> 202206 | H6: =IF(H7+0<10,(H4&"0"&H7)+0,H4&H7) -> 202201 | I6: =H6+1 -> 202202 | J6: =I6+1 -> 202203 | K6: =J6+1 -> 202204 | L6: 202205 | M6: 202206 | N6: 202207 | O6: 202208 | P6: 202209 | Q6: 202210 | R6: 202211 | S6: 202212 | T6: 202213 | U6: 202214 | V6: 202215 | W6: 202216 | X6: 202217 | Y6: 202218 | Z6: 202219 | AA6: 202220 | AB6: 202221 | AC6: 202222 | AD6: 202223 | AE6: 202224 | AF6: 202225 | AG6: 202226 | AH6: 202227 | AI6: 202228 | AJ6: 202229 | AK6: 202230 | AL6: 202231 | AM6: 202232 | AN6: 202233 | AO6: 202234 | AP6: 202235 | AQ6: 202236 | AR6: 202237 | AS6: 202238 | AT6: 202239 | AU6: 202240 | AV6: 202241 | AW6: 202242 | AX6: 202243 | AY6: 202244 | AZ6: 202245 | BA6: 202246 | BB6: 202247 | BC6: 202248 | BD6: 202249 | BE6: 202250 | BF6: 202251 | BG6: 202252 | BH6: =BG6+49 -> 202301 | BI6: =BH6+1 -> 202302 | BJ6: =BI6+1 -> 202303 | BK6: =BJ6+1 -> 202304 | BL6: 202305 | BM6: 202306 | BN6: 202307 | BO6: 202308 | BP6: 202309 | BQ6: 202310 | BR6: 202311 | BS6: 202312 | BT6: 202313 | BU6: 202314 | BV6: 202315 | BW6: 202316 | BX6: 202317 | BY6: 202318 | BZ6: 202319 | CA6: 202320 | CB6: 202321 | CC6: 202322 | CD6: 202323 | CE6: 202324 | CF6: 202325 | CG6: 202326 | CH6: 202327 | CI6: 202328 | CJ6: 202329 | CK6: 202330 | CL6: 202331 | CM6: 202332 | CN6: 202333 | CO6: 202334 | CP6: 202335 | CQ6: 202336 | CR6: 202337 | CS6: 202338 | CT6: 202339 | CU6: 202340 | CV6: 202341 | CW6: 202342 | CX6: 202343 | CY6: 202344 | CZ6: 202345 | DA6: 202346 | DB6: 202347 | DC6: 202348 | DD6: 202349 | DE6: 202350 | DF6: 202351 | DG6: 202352 | DH6: =DG6+49 -> 202401 | DI6: =DH6+1 -> 202402 | DJ6: =DI6+1 -> 202403 | DK6: =DJ6+1 -> 202404 | DL6: 202405 | DM6: 202406 | DN6: 202407 | DO6: 202408 | DP6: 202409 | DQ6: 202410 | DR6: 202411 | DS6: 202412 | DT6: 202413 | DU6: 202414 | DV6: 202415 | DW6: 202416 | DX6: 202417 | DY6: 202418 | DZ6: 202419 | EA6: 202420 | EB6: 202421 | EC6: 202422 | ED6: 202423 | EE6: 202424 | EF6: 202425 | EG6: 202426 | EH6: 202427 | EI6: 202428 | EJ6: 202429 | EK6: 202430 | EL6: 202431 | EM6: 202432 | EN6: 202433 | EO6: 202434 | EP6: 202435 | EQ6: 202436 | ER6: 202437 | ES6: 202438 | ET6: 202439 | EU6: 202440 | EV6: 202441 | EW6: 202442 | EX6: 202443 | EY6: 202444 | EZ6: 202445 | FA6: 202446 | FB6: 202447 | FC6: 202448 | FD6: 202449 | FE6: 202450 | FF6: 202451 | FG6: 202452
B7: Aktivitet | C7: Ansvarig | D7: Start | E7: Slut | F7: Status | H7: 1 | I7: 2 | J7: 3 | K7: 4 | L7: 5 | M7: 6 | N7: 7 | O7: 8 | P7: 9 | Q7: 10 | R7: 11 | S7: 12 | T7: 13 | U7: 14 | V7: 15 | W7: 16 | X7: 17 | Y7: 18 | Z7: 19 | AA7: 20 | AB7: 21 | AC7: 22 | AD7: 23 | AE7: 24 | AF7: 25 | AG7: 26 | AH7: 27 | AI7: 28 | AJ7: 29 | AK7: 30 | AL7: 31 | AM7: 32 | AN7: 33 | AO7: 34 | AP7: 35 | AQ7: 36 | AR7: 37 | AS7: 38 | AT7: 39 | AU7: 40 | AV7: 41 | AW7: 42 | AX7: 43 | AY7: 44 | AZ7: 45 | BA7: 46 | BB7: 47 | BC7: 48 | BD7: 49 | BE7: 50 | BF7: 51 | BG7: 52 | BH7: 1 | BI7: 2 | BJ7: 3 | BK7: 4 | BL7: 5 | BM7: 6 | BN7: 7 | BO7: 8 | BP7: 9 | BQ7: 10 | BR7: 11 | BS7: 12 | BT7: 13 | BU7: 14 | BV7: 15 | BW7: 16 | BX7: 17 | BY7: 18 | BZ7: 19 | CA7: 20 | CB7: 21 | CC7: 22 | CD7: 23 | CE7: 24 | CF7: 25 | CG7: 26 | CH7: 27 | CI7: 28 | CJ7: 29 | CK7: 30 | CL7: 31 | CM7: 32 | CN7: 33 | CO7: 34 | CP7: 35 | CQ7: 36 | CR7: 37 | CS7: 38 | CT7: 39 | CU7: 40 | CV7: 41 | CW7: 42 | CX7: 43 | CY7: 44 | CZ7: 45 | DA7: 46 | DB7: 47 | DC7: 48 | DD7: 49 | DE7: 50 | DF7: 51 | DG7: 52 | DH7: 1 | DI7: 2 | DJ7: 3 | DK7: 4 | DL7: 5 | DM7: 6 | DN7: 7 | DO7: 8 | DP7: 9 | DQ7: 10 | DR7: 11 | DS7: 12 | DT7: 13 | DU7: 14 | DV7: 15 | DW7: 16 | DX7: 17 | DY7: 18 | DZ7: 19 | EA7: 20 | EB7: 21 | EC7: 22 | ED7: 23 | EE7: 24 | EF7: 25 | EG7: 26 | EH7: 27 | EI7: 28 | EJ7: 29 | EK7: 30 | EL7: 31 | EM7: 32 | EN7: 33 | EO7: 34 | EP7: 35 | EQ7: 36 | ER7: 37 | ES7: 38 | ET7: 39 | EU7: 40 | EV7: 41 | EW7: 42 | EX7: 43 | EY7: 44 | EZ7: 45 | FA7: 46 | FB7: 47 | FC7: 48 | FD7: 49 | FE7: 50 | FF7: 51 | FG7: 52
B8: Handlingar
B9: Ritningar
B10: Granskningshandlingar | C10: Person B | D10: 202208 | E10: 202212 | F10: Påbörjad
B11: Bygghandlingar | C11: Person B | D11: 202212 | E11: 202216 | F11: Planerad
B13: Anmälningar
B14: Tillstånd - Miljöanmälan | C14: Person A | D14: 202218 | E14: 202224 | F14: Planerad
B15: Miljöanmälan | C15: Person B | D15: 202224 | E15: 202225 | F15: Planerad
B17: Övriga
B18: Samråd med grannar | C18: Person A | D18: 202226 | E18: 202230 | F18: Avslutad

Sheet Inställningar (hidden)
B1: INSTÄLLNINGAR
B3: Veckor | D3: Status
B4: =(' Mall tidplanering'!$H$4&"01")+0 -> 202201 | D4: Idé
B5: =B4+1 -> 202202 | D5: Planerad
B6: =B5+1 -> 202203 | D6: Påbörjad
B7: 202204 | D7: Avslutad
B8: 202205 | D8: Pausad
B9: 202206
B10: 202207
B11: 202208
B12: 202209
B13: 202210
B14: 202211
B15: 202212
B16: 202213
B17: 202214
B18: 202215
B19: 202216
B20: 202217
B21: 202218
B22: 202219
B23: 202220
B24: 202221
B25: 202222
B26: 202223
B27: 202224
B28: 202225
B29: 202226
B30: 202227
B31: 202228
B32: 202229
B33: 202230
B34: 202231
B35: 202232
B36: 202233
B37: 202234
B38: 202235
B39: 202236
B40: 202237
B41: 202238
B42: 202239
B43: 202240
B44: 202241
B45: 202242
B46: 202243
B47: 202244
B48: 202245
B49: 202246
B50: 202247
B51: 202248
B52: 202249
B53: 202250
B54: 202251
B55: 202252
B56: =(' Mall tidplanering'!$H$4+1&"01")+0 -> 202301
B57: 202302
B58: 202303
B59: 202304
B60: 202305
B61: 202306
B62: 202307
B63: 202308
B64: 202309
B65: 202310
B66: 202311
B67: 202312
B68: 202313
B69: 202314
B70: =B69+1 -> 202315
B71: 202316
B72: 202317
B73: 202318
B74: 202319
B75: 202320
B76: 202321
B77: 202322
B78: 202323
B79: 202324
B80: 202325
B81: 202326
B82: 202327
B83: 202328
B84: 202329
B85: 202330
B86: 202331
B87: 202332
B88: 202333
B89: 202334
B90: 202335
B91: 202336
B92: 202337
B93: 202338
B94: 202339
B95: 202340
B96: 202341
B97: 202342
B98: 202343
B99: 202344
B100: 202345
B101: 202346
B102: 202347
B103: 202348
B104: 202349
B105: 202350
B106: 202351
B107: 202152
B108: =(' Mall tidplanering'!$H$4+2&"01")+0 -> 202401
B109: =B108+1 -> 202402
B110: =B109+1 -> 202403
B111: 202404
B112: 202405
B113: 202406
B114: 202407
B115: 202408
B116: 202409
B117: 202410
B118: 202411
B119: 202412
B120: 202413
B121: 202414
B122: 202415
B123: 202416
B124: 202417
B125: 202418
B126: 202419
B127: 202420
B128: 202421
B129: 202422
B130: 202423
B131: 202424
B132: 202425
B133: 202426
B134: 202427
B135: 202428
B136: 202429
B137: 202430
B138: 202431
B139: 202432
B140: 202433
B141: 202434
B142: 202435
B143: 202436
B144: 202437
B145: 202438
B146: 202439
B147: 202440
B148: 202441
B149: 202442
B150: 202443
B151: 202444
B152: 202445
B153: 202446
B154: 202447
B155: 202448
B156: 202449
B157: 202450
B158: 202451
B159: 202452
